[Event "Titled Tuesday Blitz January 18 2022"]
[White "Maksimovic, Bojan"]
[Black "Bauer, Thomas"]
[WhiteFideId "14408120"]
[BlackFideId "1639293"]
[WhiteElo "2450"]
[BlackElo "2220"]
[Result "1-0"]
[Round "01"]
[TimeControl "180+1"]
[Date "2022.01.18"]
[WhiteClock "0:01:26"]
[BlackClock "0:00:02"]

1. c4 {[%clk 0:03:00]}  g6 {[%clk 0:02:53]} 2. Nc3 {[%clk 0:02:59]}  Bg7 {[%clk 0:02:52]} 3. d4 {[%clk 0:03:00]}  d6 {[%clk 0:02:48]} 4. e4 {[%clk 0:03:00]}  e5 {[%clk 0:02:44]} 5. dxe5 {[%clk 0:03:00]}  Bxe5 {[%clk 0:02:40]} 6. Nf3 {[%clk 0:02:59]}  Bxc3+ {[%clk 0:02:40]} 7. bxc3 {[%clk 0:02:58]}  Qf6 {[%clk 0:02:33]} 8. e5 {[%clk 0:02:44]}  dxe5 {[%clk 0:02:28]} 9. Bg5 {[%clk 0:02:42]}  Qd6 {[%clk 0:02:25]} 10. Qxd6 {[%clk 0:02:41]}  cxd6 {[%clk 0:02:25]} 11. O-O-O {[%clk 0:02:42]}  f6 {[%clk 0:02:24]} 12. Be3 {[%clk 0:02:42]}  Ke7 {[%clk 0:02:01]} 13. c5 {[%clk 0:02:33]}  dxc5 {[%clk 0:02:01]} 14. Bxc5+ {[%clk 0:02:34]}  Kf7 {[%clk 0:02:01]} 15. Rd8 {[%clk 0:02:34]}  Nc6 {[%clk 0:01:58]} 16. Bc4+ {[%clk 0:02:33]}  Be6 {[%clk 0:01:45]} 17. Bxe6+ {[%clk 0:02:32]}  Kxe6 {[%clk 0:01:46]} 18. Rxa8 {[%clk 0:02:33]}  b6 {[%clk 0:01:46]} 19. Ba3 {[%clk 0:02:30]}  Na5 {[%clk 0:01:41]} 20. Kc2 {[%clk 0:02:26]}  Nc4 {[%clk 0:01:40]} 21. Bc1 {[%clk 0:02:27]}  h5 {[%clk 0:01:38]} 22. Rd1 {[%clk 0:02:24]}  g5 {[%clk 0:01:37]} 23. Rdd8 {[%clk 0:02:24]}  Kf7 {[%clk 0:01:38]} 24. Kd3 {[%clk 0:02:12]}  Na5 {[%clk 0:01:35]} 25. Ke4 {[%clk 0:02:12]}  f5+ {[%clk 0:01:33]} 26. Kxe5 {[%clk 0:02:10]}  Nc6+ {[%clk 0:01:33]} 27. Kd6 {[%clk 0:01:30]}  Rh6+ {[%clk 0:01:32]} 28. Kc7 {[%clk 0:01:29]}  Nxd8 {[%clk 0:01:28]} 29. Nxg5+ {[%clk 0:01:30]}  Ke7 {[%clk 0:01:19]} 30. Rxd8 {[%clk 0:01:30]}  Rg6 {[%clk 0:01:12]} 31. f4 {[%clk 0:01:25]}  Rg7 {[%clk 0:01:05]} 32. Ba3+ {[%clk 0:01:18]}  Kf6+ {[%clk 0:01:05]} 33. Rd7 {[%clk 0:01:19]}  Rxd7+ {[%clk 0:00:59]} 34. Kxd7 {[%clk 0:01:20]}  h4 {[%clk 0:00:45]} 35. h3 {[%clk 0:01:20]}  Kg6 {[%clk 0:00:40]} 36. Ke6 {[%clk 0:01:19]}  Nf6 {[%clk 0:00:36]} 37. Nf7 {[%clk 0:01:17]}  Ne4 {[%clk 0:00:27]} 38. Ne5+ {[%clk 0:01:18]}  Kg7 {[%clk 0:00:26]} 39. Bb2 {[%clk 0:01:18]}  Ng3 {[%clk 0:00:20]} 40. c4 {[%clk 0:01:18]}  Kf8 {[%clk 0:00:18]} 41. Kf6 {[%clk 0:01:19]}  Ke8 {[%clk 0:00:13]} 42. Kg5 {[%clk 0:01:20]}  Ne2 {[%clk 0:00:08]} 43. Kxf5 {[%clk 0:01:21]}  a6 {[%clk 0:00:07]} 44. Kg4 {[%clk 0:01:21]}  b5 {[%clk 0:00:07]} 45. f5 {[%clk 0:01:22]}  bxc4 {[%clk 0:00:06]} 46. Nxc4 {[%clk 0:01:23]}  Kf7 {[%clk 0:00:04]} 47. Ne5+ {[%clk 0:01:23]}  Kf8 {[%clk 0:00:04]} 48. f6 {[%clk 0:01:23]}  a5 {[%clk 0:00:04]} 49. Ba3+ {[%clk 0:01:24]}  Ke8 {[%clk 0:00:04]} 50. f7+ {[%clk 0:01:25]}  Kd8 {[%clk 0:00:05]} 51. f8=Q+ {[%clk 0:01:26]}  Kc7 {[%clk 0:00:06]} 52. Qd6+ {[%clk 0:01:27]}  Kb7 {[%clk 0:00:06]} 53. Qc6+ {[%clk 0:01:28]}  Kb8 {[%clk 0:00:06]} 54. Nd7+ {[%clk 0:01:29]}  Ka7 {[%clk 0:00:06]} 55. Qa6+ {[%clk 0:01:29]}  Kxa6 {[%clk 0:00:06]} 56. Nc5+ {[%clk 0:01:30]}  Kb5 {[%clk 0:00:05]} 57. Kxh4 {[%clk 0:01:31]}  Nf4 {[%clk 0:00:02]} 58. g4 {[%clk 0:01:31]}  Ng6+ {[%clk 0:00:02]} 59. Kg5 {[%clk 0:01:31]}  Ne5 {[%clk 0:00:02]} 60. h4 {[%clk 0:01:32]}  Nc4 {[%clk 0:00:02]} 61. Bc1 {[%clk 0:01:26]}  Kxc5 {[%clk 0:00:02]} 62. h5 {[%clk 0:01:27]}  Ne5 {[%clk 0:00:01]} 63. h6 {[%clk 0:01:28]}  Nf7+ {[%clk 0:00:01]} 64. Kg6 {[%clk 0:01:28]}  Ne5+ {[%clk 0:00:01]} 65. Kf5 {[%clk 0:01:29]}  Nf7 {[%clk 0:00:01]} 66. h7 {[%clk 0:01:29]}  Kc4 {[%clk 0:00:01]} 67. g5 {[%clk 0:01:30]}  Kc3 {[%clk 0:00:01]} 68. Bf4 {[%clk 0:01:30]}  Nd8 {[%clk 0:00:01]} 69. g6 {[%clk 0:01:30]}  Nc6 {[%clk 0:00:02]} 70. h8=Q+ {[%clk 0:01:30]}  Nd4+ {[%clk 0:00:02]} 71. Ke4 {[%clk 0:01:29]}  Kc2 {[%clk 0:00:01]} 72. Qxd4 {[%clk 0:01:28]}  a4 {[%clk 0:00:02]} 73. g7 {[%clk 0:01:27]}  a3 {[%clk 0:00:02]} 74. Qc4+ {[%clk 0:01:27]}  Kb1 {[%clk 0:00:02]} 75. Qb3+ {[%clk 0:01:26]}  Ka1 {[%clk 0:00:02]} 76. Be5# {[%clk 0:01:26]} 1-0


[Site "https://www.chess.com"]

[Event "Titled Tuesday Blitz January 18 2022"]
[White "Manukian, Artak"]
[Black "Isanzhulov, Arystan"]
[WhiteFideId "13301373"]
[BlackFideId "13711644"]
[WhiteElo "2434"]
[BlackElo "2278"]
[Result "0-1"]
[Round "01"]
[TimeControl "180+1"]
[Date "2022.01.18"]
[WhiteClock "0:00:05"]
[BlackClock "0:00:03"]

1. e4 {[%clk 0:02:59]}  e6 {[%clk 0:02:40]} 2. d4 {[%clk 0:02:57]}  d5 {[%clk 0:02:40]} 3. e5 {[%clk 0:02:58]}  b6 {[%clk 0:02:40]} 4. c3 {[%clk 0:02:56]}  Qd7 {[%clk 0:02:39]} 5. Nf3 {[%clk 0:02:53]}  Ba6 {[%clk 0:02:39]} 6. Bxa6 {[%clk 0:02:51]}  Nxa6 {[%clk 0:02:39]} 7. O-O {[%clk 0:02:52]}  h6 {[%clk 0:02:39]} 8. b4 {[%clk 0:02:51]}  Ne7 {[%clk 0:02:32]} 9. a4 {[%clk 0:02:50]}  g5 {[%clk 0:02:31]} 10. b5 {[%clk 0:02:42]}  Nb8 {[%clk 0:02:30]} 11. Na3 {[%clk 0:02:40]}  Bg7 {[%clk 0:02:15]} 12. Nc2 {[%clk 0:02:28]}  a6 {[%clk 0:02:15]} 13. Qe2 {[%clk 0:02:15]}  O-O {[%clk 0:02:10]} 14. Ba3 {[%clk 0:02:14]}  Rc8 {[%clk 0:02:09]} 15. h4 {[%clk 0:02:09]}  gxh4 {[%clk 0:01:58]} 16. Nxh4 {[%clk 0:02:08]}  Ng6 {[%clk 0:01:57]} 17. Nxg6 {[%clk 0:02:08]}  fxg6 {[%clk 0:01:58]} 18. Ne3 {[%clk 0:01:44]}  c5 {[%clk 0:01:53]} 19. bxc6 {[%clk 0:01:32]}  Nxc6 {[%clk 0:01:50]} 20. Ng4 {[%clk 0:01:30]}  h5 {[%clk 0:01:41]} 21. Nf6+ {[%clk 0:01:20]}  Bxf6 {[%clk 0:01:41]} 22. exf6 {[%clk 0:01:21]}  Qf7 {[%clk 0:01:36]} 23. Rfe1 {[%clk 0:01:21]}  Re8 {[%clk 0:01:12]} 24. Rab1 {[%clk 0:01:14]}  Na5 {[%clk 0:01:07]} 25. Bd6 {[%clk 0:01:07]}  Rac8 {[%clk 0:01:03]} 26. Be5 {[%clk 0:01:04]}  Nc4 {[%clk 0:01:01]} 27. g4 {[%clk 0:00:57]}  h4 {[%clk 0:00:42]} 28. g5 {[%clk 0:00:49]}  Qh7 {[%clk 0:00:42]} 29. Qg4 {[%clk 0:00:43]}  Kf7 {[%clk 0:00:39]} 30. Kg2 {[%clk 0:00:29]}  Rc6 {[%clk 0:00:38]} 31. Rh1 {[%clk 0:00:28]}  Rh8 {[%clk 0:00:38]} 32. Rh3 {[%clk 0:00:26]}  Qh5 {[%clk 0:00:36]} 33. Qf4 {[%clk 0:00:22]}  Nxe5 {[%clk 0:00:26]} 34. dxe5 {[%clk 0:00:15]}  Rc4 {[%clk 0:00:25]} 35. Qe3 {[%clk 0:00:13]}  Qg4+ {[%clk 0:00:22]} 36. Kh2 {[%clk 0:00:13]}  d4 {[%clk 0:00:06]} 37. cxd4 {[%clk 0:00:12]}  Rb8 {[%clk 0:00:06]} 38. d5 {[%clk 0:00:11]}  exd5 {[%clk 0:00:07]} 39. Rxb6 {[%clk 0:00:09]}  Rxb6 {[%clk 0:00:02]} 40. Qxb6 {[%clk 0:00:10]}  Qf4+ {[%clk 0:00:03]} 41. Kg2 {[%clk 0:00:10]}  Qxg5+ {[%clk 0:00:03]} 42. Kh2 {[%clk 0:00:10]}  Qf4+ {[%clk 0:00:04]} 43. Kg2 {[%clk 0:00:11]}  Qg5+ {[%clk 0:00:04]} 44. Kh2 {[%clk 0:00:11]}  Qxe5+ {[%clk 0:00:05]} 45. Kg2 {[%clk 0:00:11]}  Qg5+ {[%clk 0:00:05]} 46. Kh2 {[%clk 0:00:11]}  Qf4+ {[%clk 0:00:05]} 47. Kg2 {[%clk 0:00:12]}  Qg5+ {[%clk 0:00:04]} 48. Kh2 {[%clk 0:00:12]}  Rc2 {[%clk 0:00:05]} 49. Rf3 {[%clk 0:00:07]}  Qe5+ {[%clk 0:00:04]} 50. Kh3 {[%clk 0:00:07]}  Rc7 {[%clk 0:00:02]} 51. Qxa6 {[%clk 0:00:06]}  Qe6+ {[%clk 0:00:02]} 52. Kh2 {[%clk 0:00:05]}  Qxa6 {[%clk 0:00:03]} 0-1


[Site "https://www.chess.com"]

[Event "Titled Tuesday Blitz January 18 2022"]
[White "Morris-Suzuki, Sophie"]
[Black "Hakobyan, Aram"]
[WhiteFideId "30922615"]
[BlackFideId "13306677"]
[WhiteElo "2503"]
[BlackElo "2557"]
[Result "0-1"]
[Round "01"]
[TimeControl "180+1"]
[Date "2022.01.18"]
[WhiteClock "0:00:02"]
[BlackClock "0:01:21"]

1. d4 {[%clk 0:03:00]}  Nf6 {[%clk 0:02:55]} 2. c4 {[%clk 0:02:55]}  e6 {[%clk 0:02:55]} 3. Nc3 {[%clk 0:02:46]}  Bb4 {[%clk 0:02:54]} 4. e3 {[%clk 0:02:43]}  Bxc3+ {[%clk 0:02:54]} 5. bxc3 {[%clk 0:02:41]}  c5 {[%clk 0:02:55]} 6. Bd3 {[%clk 0:02:41]}  d6 {[%clk 0:02:55]} 7. e4 {[%clk 0:02:41]}  Nc6 {[%clk 0:02:45]} 8. Ne2 {[%clk 0:02:39]}  e5 {[%clk 0:02:45]} 9. O-O {[%clk 0:02:24]}  O-O {[%clk 0:02:44]} 10. Bb2 {[%clk 0:02:12]}  Re8 {[%clk 0:02:38]} 11. Qc2 {[%clk 0:02:08]}  b6 {[%clk 0:02:31]} 12. a3 {[%clk 0:01:53]}  Ba6 {[%clk 0:02:27]} 13. f4 {[%clk 0:01:51]}  Ng4 {[%clk 0:02:09]} 14. Qd2 {[%clk 0:01:44]}  Na5 {[%clk 0:02:09]} 15. h3 {[%clk 0:01:38]}  Nf6 {[%clk 0:02:01]} 16. fxe5 {[%clk 0:01:24]}  dxe5 {[%clk 0:02:01]} 17. Ng3 {[%clk 0:01:20]}  Bxc4 {[%clk 0:01:46]} 18. Nf5 {[%clk 0:00:31]}  Nh5 {[%clk 0:01:39]} 19. Rad1 {[%clk 0:00:22]}  Bxd3 {[%clk 0:01:38]} 20. Qxd3 {[%clk 0:00:22]}  Qg5 {[%clk 0:01:36]} 21. Qf3 {[%clk 0:00:19]}  Nb3 {[%clk 0:01:25]} 22. Nd6 {[%clk 0:00:18]}  Rf8 {[%clk 0:01:25]} 23. Nxf7 {[%clk 0:00:07]}  Qg6 {[%clk 0:01:25]} 24. Nxe5 {[%clk 0:00:03]}  Rxf3 {[%clk 0:01:26]} 25. Nxg6 {[%clk 0:00:03]}  Rxf1+ {[%clk 0:01:27]} 26. Rxf1 {[%clk 0:00:03]}  hxg6 {[%clk 0:01:27]} 27. d5 {[%clk 0:00:03]}  Nf6 {[%clk 0:01:27]} 28. Re1 {[%clk 0:00:02]}  Re8 {[%clk 0:01:27]} 29. d6 {[%clk 0:00:02]}  Nd7 {[%clk 0:01:24]} 30. c4 {[%clk 0:00:02]}  Nd4 {[%clk 0:01:24]} 31. Rd1 {[%clk 0:00:02]}  Rxe4 {[%clk 0:01:22]} 32. Kh2 {[%clk 0:00:02]}  Ne6 {[%clk 0:01:22]} 33. Rf1 {[%clk 0:00:02]}  Rxc4 {[%clk 0:01:19]} 34. Bc1 {[%clk 0:00:02]}  Rd4 {[%clk 0:01:19]} 35. Be3 {[%clk 0:00:02]}  Rxd6 {[%clk 0:01:20]} 36. Bg1 {[%clk 0:00:02]}  Rd3 {[%clk 0:01:20]} 37. Re1 {[%clk 0:00:02]}  Nd4 {[%clk 0:01:20]} 38. Re7 {[%clk 0:00:02]}  Nf6 {[%clk 0:01:20]} 39. Rxa7 {[%clk 0:00:01]}  Rd2 {[%clk 0:01:21]} 40. Ra4 {[%clk 0:00:01]}  Ne4 {[%clk 0:01:21]} 41. Kh1 {[%clk 0:00:01]}  Rd1 {[%clk 0:01:21]} 42. Kh2 {[%clk 0:00:01]}  b5 {[%clk 0:01:20]} 43. Ra8+ {[%clk 0:00:01]}  Kh7 {[%clk 0:01:21]} 44. Rb8 {[%clk 0:00:02]}  Rd2 {[%clk 0:01:20]} 45. Rc8 {[%clk 0:00:02]}  Nf3+ {[%clk 0:01:20]} 46. Kh1 {[%clk 0:00:02]}  Ng3# {[%clk 0:01:21]} 0-1


[Site "https://www.chess.com"]

[Event "Titled Tuesday Blitz January 18 2022"]
[White "Navalgund, Niranjan"]
[Black "Yoo, Christopher Woojin"]
[WhiteFideId "5030854"]
[BlackFideId "30909694"]
[WhiteElo "2290"]
[BlackElo "2105"]
[Result "1/2-1/2"]
[Round "01"]
[TimeControl "180+1"]
[Date "2022.01.18"]
[WhiteClock "0:00:14"]
[BlackClock "0:00:03"]

1. e4 {[%clk 0:02:58]}  e5 {[%clk 0:02:50]} 2. Nf3 {[%clk 0:02:58]}  Nc6 {[%clk 0:02:50]} 3. Bb5 {[%clk 0:02:58]}  a6 {[%clk 0:02:49]} 4. Ba4 {[%clk 0:02:57]}  Nf6 {[%clk 0:02:50]} 5. O-O {[%clk 0:02:58]}  Bc5 {[%clk 0:02:49]} 6. c3 {[%clk 0:02:55]}  b5 {[%clk 0:02:47]} 7. Bc2 {[%clk 0:02:55]}  d5 {[%clk 0:02:47]} 8. exd5 {[%clk 0:02:54]}  Qxd5 {[%clk 0:02:46]} 9. d4 {[%clk 0:02:46]}  exd4 {[%clk 0:02:39]} 10. Re1+ {[%clk 0:02:46]}  Be6 {[%clk 0:02:29]} 11. Bb3 {[%clk 0:02:41]}  Qd7 {[%clk 0:01:56]} 12. Ng5 {[%clk 0:02:31]}  Nd8 {[%clk 0:01:07]} 13. Qf3 {[%clk 0:02:17]}  Rb8 {[%clk 0:00:48]} 14. Qf5 {[%clk 0:02:14]}  Be7 {[%clk 0:00:45]} 15. Nxe6 {[%clk 0:02:07]}  Nxe6 {[%clk 0:00:45]} 16. Rxe6 {[%clk 0:01:56]}  fxe6 {[%clk 0:00:46]} 17. Bxe6 {[%clk 0:01:54]}  Qc6 {[%clk 0:00:43]} 18. Bf4 {[%clk 0:01:50]}  Qe4 {[%clk 0:00:32]} 19. Qxe4 {[%clk 0:01:26]}  Nxe4 {[%clk 0:00:32]} 20. Bxc7 {[%clk 0:01:26]}  dxc3 {[%clk 0:00:23]} 21. Nxc3 {[%clk 0:01:22]}  Rb7 {[%clk 0:00:22]} 22. Nd5 {[%clk 0:01:07]}  Nf6 {[%clk 0:00:20]} 23. Rc1 {[%clk 0:00:56]}  b4 {[%clk 0:00:14]} 24. Be5 {[%clk 0:00:48]}  Bd8 {[%clk 0:00:13]} 25. Rc8 {[%clk 0:00:41]}  Nxd5 {[%clk 0:00:12]} 26. Bxd5 {[%clk 0:00:41]}  Re7 {[%clk 0:00:11]} 27. f4 {[%clk 0:00:39]}  Kd7 {[%clk 0:00:11]} 28. Rc6 {[%clk 0:00:37]}  Rhe8 {[%clk 0:00:04]} 29. Rxa6 {[%clk 0:00:36]}  Rxe5 {[%clk 0:00:04]} 30. fxe5 {[%clk 0:00:31]}  Rxe5 {[%clk 0:00:05]} 31. Bc6+ {[%clk 0:00:27]}  Kc7 {[%clk 0:00:03]} 32. Bf3 {[%clk 0:00:28]}  Bf6 {[%clk 0:00:04]} 33. Kf2 {[%clk 0:00:26]}  Rc5 {[%clk 0:00:03]} 34. b3 {[%clk 0:00:26]}  Rc2+ {[%clk 0:00:03]} 35. Ke3 {[%clk 0:00:26]}  Be5 {[%clk 0:00:01]} 36. h3 {[%clk 0:00:26]}  Rc3+ {[%clk 0:00:01]} 37. Ke4 {[%clk 0:00:25]}  Bf6 {[%clk 0:00:02]} 38. Kf5 {[%clk 0:00:25]}  Rc2 {[%clk 0:00:03]} 39. Ra7+ {[%clk 0:00:24]}  Kb6 {[%clk 0:00:02]} 40. Ra8 {[%clk 0:00:25]}  Kc7 {[%clk 0:00:02]} 41. Ra4 {[%clk 0:00:24]}  Be7 {[%clk 0:00:02]} 42. Ra7+ {[%clk 0:00:23]}  Kd6 {[%clk 0:00:01]} 43. g4 {[%clk 0:00:21]}  Bf6 {[%clk 0:00:01]} 44. g5 {[%clk 0:00:20]}  Bd4 {[%clk 0:00:02]} 45. Ra6+ {[%clk 0:00:19]}  Kc5 {[%clk 0:00:02]} 46. Ke4 {[%clk 0:00:20]}  Rc3 {[%clk 0:00:01]} 47. Bg2 {[%clk 0:00:19]}  Re3+ {[%clk 0:00:01]} 48. Kf4 {[%clk 0:00:18]}  Re2 {[%clk 0:00:02]} 49. Bf3 {[%clk 0:00:18]}  Re8 {[%clk 0:00:03]} 50. Rc6+ {[%clk 0:00:18]}  Kb5 {[%clk 0:00:03]} 51. Rc4 {[%clk 0:00:16]}  Be3+ {[%clk 0:00:03]} 52. Kg4 {[%clk 0:00:16]}  Re5 {[%clk 0:00:04]} 53. h4 {[%clk 0:00:16]}  h6 {[%clk 0:00:04]} 54. Bc6+ {[%clk 0:00:16]}  Kb6 {[%clk 0:00:04]} 55. g6 {[%clk 0:00:16]}  Re6 {[%clk 0:00:03]} 56. Be4 {[%clk 0:00:16]}  Bd2 {[%clk 0:00:02]} 57. h5 {[%clk 0:00:16]}  Rf6 {[%clk 0:00:03]} 58. Bf5 {[%clk 0:00:15]}  Rd6 {[%clk 0:00:02]} 59. Re4 {[%clk 0:00:16]}  Bc3 {[%clk 0:00:02]} 60. Re7 {[%clk 0:00:16]}  Bf6 {[%clk 0:00:02]} 61. Rf7 {[%clk 0:00:15]}  Rd4+ {[%clk 0:00:02]} 62. Kf3 {[%clk 0:00:15]}  Rd6 {[%clk 0:00:02]} 63. Be4 {[%clk 0:00:16]}  Kc5 {[%clk 0:00:02]} 64. Rb7 {[%clk 0:00:16]}  Ra6 {[%clk 0:00:02]} 65. Rf7 {[%clk 0:00:14]}  Rd6 {[%clk 0:00:01]} 66. Ke2 {[%clk 0:00:14]}  Re6 {[%clk 0:00:01]} 67. Kd3 {[%clk 0:00:13]}  Rd6+ {[%clk 0:00:02]} 68. Ke3 {[%clk 0:00:13]}  Re6 {[%clk 0:00:02]} 69. Kf3 {[%clk 0:00:14]}  Rd6 {[%clk 0:00:03]} 1/2-1/2


[Site "https://www.chess.com"]

[Event "Titled Tuesday Blitz January 18 2022"]
[White "Nilsen, Tobias Lang"]
[Black "Perez Ponsa, Federico"]
[WhiteFideId "1521624"]
[BlackFideId "117927"]
[WhiteElo "2013"]
[BlackElo "2672"]
[Result "0-1"]
[Round "01"]
[TimeControl "180+1"]
[Date "2022.01.18"]
[WhiteClock "0:00:24"]
[BlackClock "0:00:15"]

1. d4 {[%clk 0:02:59]}  Nf6 {[%clk 0:02:58]} 2. c4 {[%clk 0:03:00]}  e6 {[%clk 0:02:57]} 3. g3 {[%clk 0:02:59]}  d5 {[%clk 0:02:58]} 4. Bg2 {[%clk 0:02:59]}  Bb4+ {[%clk 0:02:57]} 5. Bd2 {[%clk 0:02:59]}  Be7 {[%clk 0:02:57]} 6. Nf3 {[%clk 0:02:59]}  c6 {[%clk 0:02:56]} 7. O-O {[%clk 0:02:59]}  b6 {[%clk 0:02:56]} 8. Qc2 {[%clk 0:02:59]}  Nbd7 {[%clk 0:02:56]} 9. cxd5 {[%clk 0:02:56]}  cxd5 {[%clk 0:02:56]} 10. Nc3 {[%clk 0:02:56]}  Bb7 {[%clk 0:02:50]} 11. Rfc1 {[%clk 0:02:56]}  Rc8 {[%clk 0:02:50]} 12. Qa4 {[%clk 0:02:55]}  a6 {[%clk 0:02:49]} 13. Ne5 {[%clk 0:02:48]}  b5 {[%clk 0:02:48]} 14. Qb3 {[%clk 0:02:44]}  Nxe5 {[%clk 0:02:44]} 15. dxe5 {[%clk 0:02:45]}  Ng4 {[%clk 0:02:44]} 16. a4 {[%clk 0:01:57]}  b4 {[%clk 0:02:14]} 17. Nd1 {[%clk 0:01:57]}  Rxc1 {[%clk 0:01:58]} 18. Rxc1 {[%clk 0:01:55]}  Nxe5 {[%clk 0:01:59]} 19. Bxb4 {[%clk 0:01:55]}  Qb6 {[%clk 0:01:59]} 20. Qe3 {[%clk 0:01:30]}  Qxb4 {[%clk 0:01:49]} 21. Qxe5 {[%clk 0:01:25]}  O-O {[%clk 0:01:45]} 22. Qf4 {[%clk 0:01:07]}  Qxf4 {[%clk 0:01:25]} 23. gxf4 {[%clk 0:01:08]}  Bd6 {[%clk 0:01:26]} 24. e3 {[%clk 0:01:06]}  Rb8 {[%clk 0:01:26]} 25. Bf1 {[%clk 0:01:06]}  Kf8 {[%clk 0:01:24]} 26. Bd3 {[%clk 0:01:01]}  Ke7 {[%clk 0:01:25]} 27. Kf1 {[%clk 0:01:02]}  Kd7 {[%clk 0:01:25]} 28. Ke2 {[%clk 0:01:02]}  Bc6 {[%clk 0:01:23]} 29. Bxa6 {[%clk 0:00:56]}  Bxa4 {[%clk 0:01:23]} 30. Bd3 {[%clk 0:00:48]}  h6 {[%clk 0:01:18]} 31. Bc2 {[%clk 0:00:35]}  Bb5+ {[%clk 0:01:14]} 32. Bd3 {[%clk 0:00:35]}  Bc6 {[%clk 0:01:11]} 33. Rc2 {[%clk 0:00:33]}  Ba4 {[%clk 0:01:06]} 34. Rc1 {[%clk 0:00:33]}  g5 {[%clk 0:01:04]} 35. fxg5 {[%clk 0:00:26]}  hxg5 {[%clk 0:01:05]} 36. h3 {[%clk 0:00:27]}  f5 {[%clk 0:00:55]} 37. Bc2 {[%clk 0:00:23]}  Bb5+ {[%clk 0:00:47]} 38. Bd3 {[%clk 0:00:23]}  Bc6 {[%clk 0:00:48]} 39. Rb1 {[%clk 0:00:18]}  Rh8 {[%clk 0:00:48]} 40. b4 {[%clk 0:00:17]}  Rxh3 {[%clk 0:00:48]} 41. b5 {[%clk 0:00:18]}  Bb7 {[%clk 0:00:49]} 42. b6 {[%clk 0:00:18]}  Bc5 {[%clk 0:00:43]} 43. Nc3 {[%clk 0:00:18]}  f4 {[%clk 0:00:43]} 44. Na4 {[%clk 0:00:17]}  Bd6 {[%clk 0:00:31]} 45. Bb5+ {[%clk 0:00:17]}  Ke7 {[%clk 0:00:31]} 46. Rc1 {[%clk 0:00:18]}  f3+ {[%clk 0:00:23]} 47. Kd3 {[%clk 0:00:17]}  Rh2 {[%clk 0:00:22]} 48. Nc5 {[%clk 0:00:17]}  Bxc5 {[%clk 0:00:10]} 49. Rxc5 {[%clk 0:00:18]}  Kd6 {[%clk 0:00:09]} 50. Rc7 {[%clk 0:00:18]}  Rxf2 {[%clk 0:00:09]} 51. Rxb7 {[%clk 0:00:17]}  Rb2 {[%clk 0:00:10]} 52. Be8 {[%clk 0:00:16]}  g4 {[%clk 0:00:08]} 53. Rd7+ {[%clk 0:00:16]}  Ke5 {[%clk 0:00:08]} 54. b7 {[%clk 0:00:16]}  f2 {[%clk 0:00:08]} 55. Rf7 {[%clk 0:00:16]}  g3 {[%clk 0:00:08]} 56. Bb5 {[%clk 0:00:15]}  Rxb5 {[%clk 0:00:08]} 57. Ke2 {[%clk 0:00:15]}  Rb2+ {[%clk 0:00:07]} 58. Kf1 {[%clk 0:00:14]}  Rb1+ {[%clk 0:00:07]} 59. Kg2 {[%clk 0:00:15]}  Ke4 {[%clk 0:00:04]} 60. Kxg3 {[%clk 0:00:14]}  Kxe3 {[%clk 0:00:05]} 61. Rf3+ {[%clk 0:00:14]}  Ke4 {[%clk 0:00:05]} 62. Kxf2 {[%clk 0:00:15]}  Rb2+ {[%clk 0:00:05]} 63. Kg3 {[%clk 0:00:15]}  Rxb7 {[%clk 0:00:06]} 64. Rf4+ {[%clk 0:00:15]}  Ke5 {[%clk 0:00:06]} 65. Rf8 {[%clk 0:00:15]}  Rb3+ {[%clk 0:00:07]} 66. Kf2 {[%clk 0:00:16]}  d4 {[%clk 0:00:07]} 67. Ke2 {[%clk 0:00:17]}  Ke4 {[%clk 0:00:08]} 68. Rh8 {[%clk 0:00:17]}  Rb2+ {[%clk 0:00:08]} 69. Ke1 {[%clk 0:00:18]}  e5 {[%clk 0:00:08]} 70. Rh4+ {[%clk 0:00:18]}  Kd5 {[%clk 0:00:09]} 71. Kd1 {[%clk 0:00:19]}  d3 {[%clk 0:00:09]} 72. Rh8 {[%clk 0:00:19]}  Rg2 {[%clk 0:00:09]} 73. Rh3 {[%clk 0:00:19]}  e4 {[%clk 0:00:09]} 74. Ke1 {[%clk 0:00:20]}  Kd4 {[%clk 0:00:10]} 75. Kd1 {[%clk 0:00:21]}  Ra2 {[%clk 0:00:10]} 76. Ke1 {[%clk 0:00:20]}  Ra1+ {[%clk 0:00:11]} 77. Kf2 {[%clk 0:00:20]}  d2 {[%clk 0:00:10]} 78. Rh8 {[%clk 0:00:19]}  d1=Q {[%clk 0:00:10]} 79. Rd8+ {[%clk 0:00:20]}  Ke5 {[%clk 0:00:11]} 80. Rxd1 {[%clk 0:00:21]}  Rxd1 {[%clk 0:00:11]} 81. Ke2 {[%clk 0:00:22]}  Rd3 {[%clk 0:00:12]} 82. Ke1 {[%clk 0:00:22]}  Kf4 {[%clk 0:00:13]} 83. Ke2 {[%clk 0:00:23]}  Rf3 {[%clk 0:00:13]} 84. Ke1 {[%clk 0:00:23]}  Ke3 {[%clk 0:00:14]} 85. Kd1 {[%clk 0:00:24]}  Kd3 {[%clk 0:00:14]} 86. Ke1 {[%clk 0:00:24]}  Rf4 {[%clk 0:00:14]} 87. Kd1 {[%clk 0:00:24]}  Rf1# {[%clk 0:00:15]} 0-1


[Site "https://www.chess.com"]

[Event "Titled Tuesday Blitz January 18 2022"]
[White "Nyzhnyk, Illya"]
[Black "Brunner, Nicolas"]
[WhiteFideId "14118084"]
[BlackFideId "620246"]
[WhiteElo "2694"]
[BlackElo "2372"]
[Result "1-0"]
[Round "01"]
[TimeControl "180+1"]
[Date "2022.01.18"]
[WhiteClock "0:01:02"]
[BlackClock "0:00:16"]

1. d4 {[%clk 0:02:59]}  d5 {[%clk 0:02:59]} 2. c4 {[%clk 0:02:59]}  e6 {[%clk 0:02:58]} 3. Nc3 {[%clk 0:02:58]}  Be7 {[%clk 0:02:57]} 4. Nf3 {[%clk 0:02:56]}  Nf6 {[%clk 0:02:57]} 5. Qc2 {[%clk 0:02:56]}  O-O {[%clk 0:02:55]} 6. Bg5 {[%clk 0:02:56]}  h6 {[%clk 0:02:53]} 7. Bxf6 {[%clk 0:02:55]}  Bxf6 {[%clk 0:02:52]} 8. O-O-O {[%clk 0:02:56]}  b6 {[%clk 0:02:31]} 9. e4 {[%clk 0:02:53]}  Bb7 {[%clk 0:02:31]} 10. h4 {[%clk 0:02:45]}  dxe4 {[%clk 0:02:22]} 11. Nxe4 {[%clk 0:02:46]}  Nd7 {[%clk 0:02:21]} 12. g4 {[%clk 0:02:38]}  g6 {[%clk 0:02:16]} 13. g5 {[%clk 0:02:19]}  hxg5 {[%clk 0:02:16]} 14. hxg5 {[%clk 0:02:18]}  Bg7 {[%clk 0:02:16]} 15. Kb1 {[%clk 0:02:08]}  Qe7 {[%clk 0:02:15]} 16. Bd3 {[%clk 0:02:02]}  c5 {[%clk 0:02:14]} 17. d5 {[%clk 0:01:57]}  exd5 {[%clk 0:02:13]} 18. cxd5 {[%clk 0:01:58]}  Bxd5 {[%clk 0:02:10]} 19. Rhe1 {[%clk 0:01:55]}  Rfe8 {[%clk 0:01:03]} 20. Nf6+ {[%clk 0:01:53]}  Bxf6 {[%clk 0:00:56]} 21. Rxe7 {[%clk 0:01:53]}  Bxe7 {[%clk 0:00:52]} 22. Bxg6 {[%clk 0:01:48]}  Bxf3 {[%clk 0:00:49]} 23. Rxd7 {[%clk 0:01:40]}  fxg6 {[%clk 0:00:38]} 24. Qxg6+ {[%clk 0:01:40]}  Kh8 {[%clk 0:00:38]} 25. Rd3 {[%clk 0:01:34]}  Rf8 {[%clk 0:00:27]} 26. Rxf3 {[%clk 0:01:31]}  Rxf3 {[%clk 0:00:27]} 27. Qh5+ {[%clk 0:01:31]}  Kg7 {[%clk 0:00:26]} 28. Qxf3 {[%clk 0:01:32]}  Rf8 {[%clk 0:00:26]} 29. Qe3 {[%clk 0:01:18]}  Bd6 {[%clk 0:00:24]} 30. Qe6 {[%clk 0:01:15]}  Bf4 {[%clk 0:00:23]} 31. Qh6+ {[%clk 0:01:09]}  Kf7 {[%clk 0:00:17]} 32. g6+ {[%clk 0:01:04]}  Ke7 {[%clk 0:00:18]} 33. Qh7+ {[%clk 0:01:03]}  Ke6 {[%clk 0:00:16]} 34. g7 {[%clk 0:01:02]} 1-0


[Site "https://www.chess.com"]